Cogmind - Beta 12 @@@ ROGUE MODE // 2024.01.26 @ 15:32:04 Player: Sudoku Result: Destroyed by G-34 Mercenary with Small Laser Performance ------------- Evolutions (1) 500 Regions Visited (3) 600 Robots Destroyed (14) 70 Value Destroyed (360) 360 Prototype IDs (0) 0 Alien Tech Used (0) 0 Bonus (0) 0 TOTAL SCORE: 1530 Bonus ------- None Cogmind --------- Core Integrity 0/400 Matter 241/300 Energy 88/100 System Corruption 0% Temperature Cool (4) Movement Flying (40) Location -9/Storage Parts ------- > --- POWER (1) -------- (None) > --- PROPULSION (3) --- Improved Hover Unit Flight Unit > --- UTILITY (3) ------ Shield Generator > --- WEAPON (2) ------- (None) > --- INVENTORY (5) ---- Improved Ion Engine F-cell Engine Cargo Storage Unit Drone Bay (2/2) Peak State ------------ > --- POWER ------------ Improved Ion Engine > --- PROPULSION ------- Light Treads Aluminum Leg Improved Aluminum Leg > --- UTILITY ---------- Medium Storage Unit Improved Terrain Scanner Shield Generator > --- WEAPON ----------- Assault Rifle Mining Laser > --- INVENTORY -------- Improved Ion Engine Improved Ion Engine Improved Ion Engine Disposable Heat Sink Cargo Storage Unit Shield Generator Shield Generator Small Laser Datajack [Rating: 15] Favorites ----------- Power Improved Ion Engine Engine Improved Ion Engine Propulsion Aluminum Leg Treads Light Treads Leg Aluminum Leg Hover Unit Improved Hover Unit Flight Unit Flight Unit Utility Improved Terrain Scanner Device Improved Terrain Scanner Storage Medium Storage Unit Protection Light Armor Plating Weapon Assault Rifle Energy Gun Small Laser Ballistic Gun Assault Rifle Special Weapon Mining Laser Build | -11 -10 -9 -9 ------- Run | Jun Mat Mat Sto Slots Evolved 2 | . . 2 . Power . | . . . . Propulsion 1 | . . 1 . Utility 1 | . . 1 . Weapon . | . . . . Parts Attached 33 | 7 7 15 4 Power 4 | 1 1 2 . Engine 4 | 1 1 2 . Core . | . . . . Reactor . | . . . . Propulsion 8 | 2 . 5 1 Treads 2 | . . 2 . Leg 4 | 2 . 2 . Wheel . | . . . . Hover 1 | . . . 1 Flight 1 | . . 1 . Utility 11 | 2 2 4 3 Device 8 | 1 1 4 2 Storage 2 | 1 1 . . Processor . | . . . . Hackware . | . . . . Protection 1 | . . . 1 Artifact . | . . . . Weapon 10 | 2 4 4 . Energy Gun 2 | . . 2 . Energy Cannon . | . . . . Ballistic Gun 5 | 2 3 . . Ballistic Cannon . | . . . . Launcher . | . . . . Special Weapon 3 | . 1 2 . Impact Weapon . | . . . . Slashing Weapon . | . . . . Piercing Weapon . | . . . . Special Melee Weapon . | . . . . Unidentified Prototypes . | . . . . Parts Lost 14 | . . 12 2 Power 1 | . . 1 . Propulsion 4 | . . 4 . Utility 5 | . . 3 2 Weapon 4 | . . 4 . Highest Loss Streak 9 | . . 9 2 To Critical Strikes . | . . . . Average Slot Usage (%) 82 | . 100 83 40 Engine 9 | . 14 10 . Treads 4 | . . 8 . Leg 16 | . 28 14 . Hover 1 | . . . 11 Flight 2 | . . . 11 Device 17 | . 14 20 13 Storage 9 | . 14 10 . Energy Gun 2 | . . 5 . Ballistic Gun 15 | . 27 12 . Naked Turns . | . . . . Heaviest Build 23 | 15 22 23 7 Greatest Support 23 | 20 20 23 7 Greatest Overweight (x) 6 | . 1 6 . Average Overweight (x) . | . . . . Largest Inventory Capacity 10 | 8 10 10 5 Average Capacity 8 | 7 8 9 5 Most Carried 10 | 8 10 10 5 Average Carried 7 | 4 8 9 4 Final Capacity 10 | 8 10 5 5 Final Carried 10 | 8 10 5 5 Class Distribution -------------------- 80% | Mutant 19% | Scavenger-Mutant Dominant Class ---------------- Mutant | -10/Materials Mutant | -9/Materials Mutant | -9/Storage Resources | -11 -10 -9 -9 ----------- Run | Jun Mat Mat Sto Matter Collected 684 | 336 196 152 . Remotely . | . . . . Salvage Created 538 | 143 271 124 . Parts 28 | 7 13 8 . Haulers Intercepted . | . . . . Recyclers Shooed . | . . . . Parts Field Recycled . | . . . . Retrieved Matter . | . . . . Parts Self-Destructed . | . . . . Prevented . | . . . . Kills | -11 -10 -9 -9 ------- Run | Jun Mat Mat Sto Combat Hostiles Destroyed 9 | . 5 4 . Guns 8 | . 5 3 . Cannons 1 | . . 1 . Classes Destroyed 7 | 2 3 2 . Tunneler 2 | 2 . . . Recycler 1 | 1 . . . Operator 1 | . 1 . . Watcher 1 | . 1 . . Swarmer 1 | . . 1 . Grunt 7 | . 5 2 . Duelist 1 | . . 1 . Best Kill Streak 3 | 2 3 1 . Combat Bots Only 3 | . 3 1 . Max Kills in Single Turn 1 | 1 1 1 . Gunslinging . | . . . . Exploded . | . . . . Melee . | . . . . Uniques/NPCs Destroyed . | . . . . Combat | -11 -10 -9 -9 -------- Run | Jun Mat Mat Sto Damage Taken 1556 | . 378 1084 94 Core 446 | . 40 374 32 Absorbed by Shields 254 | . . 223 31 Core Remaining (%) 92 | 100 84 . . Volleys Fired 75 | 11 29 35 . Largest 2 | 2 2 2 . Hottest 100 | 40 100 100 . Shots Fired 130 | 22 55 53 . Gun 126 | 22 52 52 . Cannon . | . . . . Launcher . | . . . . Special 4 | . 3 1 . Kinetic 105 | 22 52 31 . Thermal 25 | . 3 22 . Explosive . | . . . . Electromagnetic . | . . . . Robot Hit Streak 8 | 3 8 7 . Robot Miss Streak 5 | 5 3 3 . Penetration Max . | . . . . Secondary Targets 2 | . 2 . . Max Gunslinging Chain 1 | . 1 . . Shots Hit Robots 78 | 10 36 32 . Core Hits 28 | 4 16 8 . Critical Kills . | . . . . Critical Parts Destroyed . | . . . . Critical Strikes . | . . . . Melee Attacks . | . . . . Impact . | . . . . Slashing . | . . . . Piercing . | . . . . Sneak Attacks . | . . . . Combat Hostiles . | . . . . Follow-up Attacks . | . . . . Damage Inflicted 930 | 145 400 385 . Guns 906 | 145 400 361 . Cannons . | . . . . Explosions . | . . . . Melee . | . . . . Ramming . | . . . . Kinetic 760 | 145 400 215 . Thermal 170 | . . 170 . Explosive . | . . . . Electromagnetic . | . . . . Impact . | . . . . Slashing . | . . . . Piercing . | . . . . Highest Corruption . | . . . . Average Corruption . | . . . . Corruption Purged . | . . . . Corruption Blocked . | . . . . Overload Shots . | . . . . Overflow Damage . | . . . . Projectiles . | . . . . Explosions . | . . . . Melee . | . . . . Knockbacks . | . . . . Impact . | . . . . Kinetic . | . . . . Secondary . | . . . . Self-Inflicted Damage . | . . . . Shots . | . . . . Rammed . | . . . . Targets Rammed . | . . . . Kicked . | . . . . Crushed . | . . . . Highest Temperature 60 | . 60 25 . Average Temperature 17 | . 21 6 . Received Heat Transfer 454 | . 210 196 48 Siege Activations . | . . . . Robots Corrupted . | . . . . Combat Hostiles . | . . . . Parts Fried . | . . . . Impact Corruptions . | . . . . Robots Melted . | . . . . Combat Hostiles . | . . . . Parts Melted . | . . . . Heat Transferred 375 | . . 375 . Parts Sabotaged . | . . . . Parts Stolen . | . . . . Parts Stripped . | . . . . Power Chain Reactions . | . . . . Missiles Intercepted . | . . . . Alert | -11 -10 -9 -9 ------- Run | Jun Mat Mat Sto Peak Influence 189 | 15 189 126 47 Initial 79 | . 9 79 10 Average 62 | 5 89 71 30 Maximum Alert Level . | . . . . Low Security (%) 100 | 100 100 100 100 Level 1 . | . . . . Level 2 . | . . . . Level 3 . | . . . . Level 4 . | . . . . Level 5 . | . . . . High Security . | . . . . Max Security . | . . . . Squads Dispatched 4 | . 2 1 1 Investigation . | . . . . Extermination . | . . . . Reinforcement 4 | . 2 1 1 Assault . | . . . . Garrison . | . . . . Intercept . | . . . . Searches Triggered . | . . . . Construction Impeded . | . . . . Haulers Reinforced . | . . . . Active Scanning Responses . | . . . . Cargo Convoy Interrupts . | . . . . Stealth | -11 -10 -9 -9 --------- Run | Jun Mat Mat Sto Distress Signals 1 | . . . 1 Communications Jammed . | . . . . Distress Signals . | . . . . Times Spotted 36 | . 10 17 9 Peak Tracking Total 8 | . 3 8 6 Tactical Retreats 2 | . . 1 1 Traps | -11 -10 -9 -9 ------- Run | Jun Mat Mat Sto Traps Triggered 2 | . . 1 1 Indirectly . | . . . . Trap Hack Attempts . | . . . . Triggered . | . . . . Disarmed . | . . . . Reprogrammed . | . . . . Reused . | . . . . Traps Extracted . | . . . . Installed . | . . . . Triggered . | . . . . Machines | -11 -10 -9 -9 ---------- Run | Jun Mat Mat Sto Machines Disabled . | . . . . Max in Single Turn . | . . . . Machines Repaired . | . . . . Machines Sabotaged . | . . . . Overloaded Fab Kills . | . . . . Hacking | -11 -10 -9 -9 --------- Run | Jun Mat Mat Sto Machines Accessed 15 | . 6 4 5 Terminals 14 | . 5 4 5 Fabricators . | . . . . Repair Stations . | . . . . Recycling Units 1 | . 1 . . Scanalyzers . | . . . . Garrison Access . | . . . . Total Hacks 40 | . 15 15 10 Successful 17 | . 3 8 6 Failed 23 | . 12 7 4 Catastrophic 3 | . 2 1 . Database Lockouts . | . . . . Manual 17 | . 7 8 2 Terminals 36 | . 11 15 10 Fabricators . | . . . . Repair Stations . | . . . . Recycling Units 4 | . 4 . . Scanalyzers . | . . . . Garrison Access . | . . . . Terminal Hacks 13 | . 2 6 5 Open Door 2 | . . . 2 Emergency Access Points 1 | . . 1 . Terminal Index 1 | . . 1 . Unreport Threat 1 | . . 1 . Locate Traps 2 | . . 1 1 Zone Layout 6 | . 2 2 2 Fabricator Hacks . | . . . . Repair Station Hacks . | . . . . Recycling Unit Hacks . | . . . . Scanalyzer . | . . . . Garrison Access Hacks . | . . . . Unauthorized Hacks 4 | . 1 2 1 Terminals 4 | . 1 2 1 Track 3 | . 1 2 . Assimilate 1 | . . . 1 Fabricators . | . . . . Repair Stations . | . . . . Recycling Units . | . . . . Scanalyzers . | . . . . Garrison Access . | . . . . Data Cores Recovered 1 | . 1 . . Used . | . . . . Hacking Detections 14 | . 6 4 4 Full Trace Events . | . . . . Feedback Events . | . . . . Feedback Blocked . | . . . . Robot Schematics Acquired . | . . . . Robots Built . | . . . . Authchips . | . . . . Time . | . . . . Total Robot Build Rating . | . . . . Part Schematics Acquired . | . . . . Parts Built . | . . . . Authchips . | . . . . Time . | . . . . Total Part Build Rating . | . . . . Parts Repaired . | . . . . Time . | . . . . Parts Recycled . | . . . . Recycled Matter . | . . . . Retrieved Matter . | . . . . Retrieved Components . | . . . . Parts Scanalyzed . | . . . . Part Schematics Acquired . | . . . . Parts Damaged . | . . . . Bothacking | -11 -10 -9 -9 ------------ Run | Jun Mat Mat Sto Used RIF Installer . | . . . . Robots Hacked . | . . . . Non-combat . | . . . . Combat . | . . . . Robot Hacks Applied . | . . . . Relay Couplers Released . | . . . . Fabnet Peak Effective % . | . . . . Robots Rewired . | . . . . Allies Hacked . | . . . . Hacks Repelled . | . . . . Allies | -11 -10 -9 -9 -------- Run | Jun Mat Mat Sto Total Allies 1 | . . . 1 Largest Group 1 | . . . 1 Highest-Rated Group 10 | . . . 10 Highest-Rated Ally 10 | . . . 10 Total Orders . | . . . . Ally Attacks . | . . . . Total Damage . | . . . . Kills . | . . . . Allies Corrupted . | . . . . Allies Melted . | . . . . Intel | -11 -10 -9 -9 ------- Run | Jun Mat Mat Sto Robot Analysis Total . | . . . . Derelict Logs Recovered . | . . . . Drone Launches . | . . . . Drone Recoveries . | . . . . Exploration | -11 -10 -9 -9 ------------- Run | Jun Mat Mat Sto Turns Passed 1111 | 151 337 474 149 Spaces Moved 735 | 81 176 251 227 Core 11 | 5 . 6 . Treads 2 | . . 2 . Legs 435 | 76 176 183 . Wheels . | . . . . Hover 138 | . . . 138 Flight 149 | . . 60 89 Fastest Speed 40 | 50 120 40 40 Average Speed 108 | 115 129 141 52 Slowest Speed 350 | 120 190 350 60 Overloaded Moves . | . . . . Propulsion Burnouts . | . . . . Robots Hopped 10 | . . 3 7 Cave-ins Triggered . | . . . . Exploration Rate (%) 31 | 5 37 33 50 Regions Visited 3 Branch Regions 1 Pre-discovered Areas . | . . . . Known Exits Taken . | . . . . Unknown Exits Taken 3 | 1 1 1 . Scrap Searched . | . . . . Spaces Dug 3 | . 3 . . Terrain Destroyed 3 | . 3 . . Melee . | . . . . Projectile 3 | . 3 . . AOE . | . . . . Terrain Rammed . | . . . . Walls Destroyed . | . . . . Machines Disabled . | . . . . Actions | -11 -10 -9 -9 --------- Run | Jun Mat Mat Sto Total 907 | 116 230 311 250 Wait 13 | 3 . 7 3 Move 712 | 80 175 244 213 Hop 10 | . . 3 7 Pick Up 29 | 15 9 3 2 Fast Attach 9 | . 1 4 4 Attach 16 | 7 . 9 . Detach . | . . . . Swap 8 | . 6 2 . Drop 17 | . 10 4 3 Fire 75 | 11 29 35 . Melee . | . . . . Ram . | . . . . Kick . | . . . . Crush . | . . . . Escape Stasis 18 | . . . 18 Rewire . | . . . . Trap . | . . . . Miscellaneous . | . . . . Route ------- -11/Junkyard -10/Materials -9/Materials (discovered 2 exits: *Sto x2) -9/Storage History --------- Turn | Location | Event 16 | -11/Junkyard | Discovered new exit (range 15) 152 | -11/Junkyard | Entered Materials 309 | -10/Materials | Build established: Mutant 379 | -10/Materials | Discovered new exit (range 16) 489 | -10/Materials | Entered another Materials area 489 | -9/Materials | Evolved 2 slots: Propulsion x1, Utility x1 593 | -9/Materials | Discovered new exit (range 21) 911 | -9/Materials | Core integrity fell below 50% 941 | -9/Materials | Core integrity fell below 20% 951 | -9/Materials | Discovered new exit (range 15) 963 | -9/Materials | Entered Storage 969 | -9/Storage | Lost 9 parts (1p2n3u3w) 1112 | -9/Storage | Destroyed by G-34 Mercenary with Small Laser Last Messages --------------- 01094_ Field strength at 90. 01095_ Field strength at 85. 01096_ Field strength at 80. 01097_ Field strength at 75. 01098_ Field strength at 70. 01099_ Field strength at 65. 01100_ Field strength at 60. 01101_ Field strength at 55. 01102_ Field strength at 50. 01103_ Field strength at 45. 01103_ K-01 Serf cleans the Terminal. 01104_ Field strength at 40. 01105_ Field strength at 35. 01106_ Field strength at 30. 01107_ Field strength at 25. 01108_ Field strength at 20. 01109_ Field strength at 15. 01110_ Field strength at 10. 01111_ K-01 Serf cleans the Terminal. 01111_ Field strength at 5. Map ----- +----------------------------------------------------+ | ?? #??????????# #??????????????????# """ ? | | ?? #??????????# ##########?????????# | | ?? ##########?# ##########?????????# | | ?? # #?# ##########???????????#"Y"# | | ?? # """"" #?# # #######????????????????? | | ?? # """"" #?# ## #????###???????????????? | | ?? # """"" #?# ## #??### #####???????????? | | ?? # #?# ## #??# ???????????? | | ?? # """"" #?# ## #### """ ???????????? | | ?? + """"" #?# ## + """ ???????????? | | ?? # """"" ### ## #### """ ???????????? | | ?? # ##g## #??# ???????????? | | ?? ########### # #??# """ ???????????? | | ?? # """"" # Tg#u#??# """ ???????????? | | ?? # """"" #k g# #### """ ???????????? | | ?? # """"" ## r r+ ???????????? | | ?? + ## #+#####+#???????????? | | ?? # # #???# ???????????? | | ?? + ## #???# ???????????? | | ?? # ## ^ #???# ???????????? | | ?? # ## #???# ???????????? | | ??#+#########+### ##### ???????????? | | ?? #??# #?# """ ??????????? | | ?? #??# #?# """ ###???????????? | | ??"""" #### #?# """ # ???????????? | | ??" "" + #?# @ + "???????????? | | ??" """ #### #?# ##### "???????????? | | ??""" " #??# #?# #???# ???????????? | | ?? "" " #??# #?### ""#???# ???????????? | | ??????????????????# T"#?????????????????? | | ?????????????????? ""#?????????????????? | | ?????????????????? #?????????????????? | | ????????????????? #?????????????????? | | ?????????????????##########?????????????????? | | ????????????????????????????????????????????? | | ????????????????????????????????????????????? | | ????????????????????????????????????????????? | | | | | | | | | | | | | | | | | | | | | | | | | | | +----------------------------------------------------+ Best States ------------- Heat Dissipation 50 Coolant Potential 50 Energy Generation 12 Energy Capacity 265 Matter Stores 300 Matter Capacity 300 Sight Range 16 Terrain Scan Range 16 Terrain Scan Density 10 Armor Coverage 150 Evasion (%) 62 Recoil Reduction 1 Item Schematics ----------------- None Robot Schematics ------------------ None Fabricated ------------ Nothing Alien Tech Used ----------------- None Achievements -------------- None Challenges ------------ None Game ------ Seed AlphaGaussProjector Manual? 0 Play Time 00:33:15 Cumulative 115.0 hours Start 2024.01.26 @ 14:26:05 End 2024.01.26 @ 15:32:04 Sessions 1 Manual Loads 0 Difficulty Rogue Special Mode None Game No. 87 Rogue 87 Adventurer 0 Explorer 0 Win Type - Total 0 Types 0/0/0/0/0/0/0/0/0 Lore% 28 Gallery% 44 Achievement% 37 Wizard Run 0 Options --------- ASCII 0 Keyboard 0 Movement Mouse Keybinds 0 Fullscreen 1 Font 18/SmallcapsGlow Map View 76x50 Tactical HUD 1 Map Filters NONE Filters NONE Steam 1 RUN: 329b74ab-d33f-4889-984f-3503ce7070e3